fUST/lending_fUST_20241216
["ID","MTS","AMOUNT","RATE_DAILY","PERIOD"]
[345542317,1734323438442,-500.0,0.00027397,7]
[345542318,1734323438451,-500.0,0.00027397,7]
[345542319,1734323438460,-512.39170351,0.00027397,7]
[345542320,1734323438469,-1000.0,0.00027397,2]
[345542321,1734323438478,-500.0,0.00027397,7]
[345542322,1734323438487,-509.73882818,0.00027397,7]
[345542323,1734323438497,-500.0,0.00027397,7]
[345542324,1734323438505,-500.0,0.00027397,7]
[345542325,1734323438514,-500.0,0.00027397,7]
[345542326,1734323438524,-500.0,0.00027397,7]
[345542327,1734323438534,-209.87361148,0.00027397,7]
[345542328,1734323438543,-500.0,0.00027397,7]
[345542329,1734323438551,-521.18370466,0.00027397,7]
[345542330,1734323438560,-500.0,0.00027397,7]
[345542331,1734323438569,-505.19491867,0.00027397,7]
[345542332,1734323438578,-507.07601276,0.00027397,7]
[345542333,1734323438587,-168.0,0.00027397,7]
[345542334,1734323438596,-500.0,0.00027397,7]
[345542335,1734323438605,-500.0,0.00027397,7]
[345542336,1734323438614,-365.29891626,0.00027397,7]
[345542337,1734323438623,-500.0,0.00027397,7]
[345542338,1734323438632,-500.0,0.00027397,7]
[345542339,1734323438641,-500.0,0.00027397,7]
[345542340,1734323438651,-504.0577385,0.00027397,7]
[345542341,1734323438663,-483.19518879,0.00027397,7]
[345542342,1734323438672,-502.63085816,0.00027397,7]
[345542343,1734323438681,-515.27627266,0.00027397,7]
[345542344,1734323438690,-502.51580994,0.00027397,7]
[345542345,1734323438700,-505.1671724,0.00027397,7]
[345542346,1734323438709,-503.18730105,0.00027397,7]
[345542347,1734323438718,-504.81937639,0.00027397,7]
[345542348,1734323438728,-219.14568439,0.00027397,7]
[345542349,1734323438738,-504.77057333,0.00027397,7]
[345542350,1734323438748,-506.29351244,0.00027397,7]
[345542351,1734323438757,-503.9768528,0.00027397,7]
[345542352,1734323438766,-502.8526723,0.00027397,7]
[345542353,1734323438777,-308.60991339,0.00027397,7]
[345542354,1734323438786,-506.7638453,0.00027397,7]
[345542355,1734323438795,-503.79040515,0.00027397,7]
[345542356,1734323438808,-500.0,0.00027397,7]
[345542357,1734323438821,-612.55144436,0.00027397,7]
[345542358,1734323438834,-599.60741935,0.00027397,7]
[345542359,1734323438848,-500.0,0.00027397,7]
[345542360,1734323438859,-500.0,0.00027397,7]
[345542361,1734323438871,-500.0,0.00027397,7]
[345542362,1734323438885,-500.0,0.00027397,7]
[345542363,1734323438897,-500.0,0.00027397,7]
[345542364,1734323438910,-504.00559524,0.00027397,7]
[345542365,1734323438923,-504.59004627,0.00027397,7]
[345542366,1734323438937,-500.0,0.00027397,7]
[345542367,1734323438950,-500.0,0.00027397,7]
[345542368,1734323438964,-519.51557087,0.00027397,7]
[345542369,1734323438978,-500.0,0.00027397,7]
[345542370,1734323438990,-500.0,0.00027397,7]
[345542371,1734323439001,-500.0,0.00027397,7]
[345542372,1734323439013,-500.0,0.00027397,7]
[345542373,1734323439026,-507.94801832,0.00027397,7]
[345542374,1734323439039,-500.0,0.00027397,7]
[345542375,1734323439052,-500.0,0.00027397,7]
[345542376,1734323439064,-505.27995439,0.00027397,7]
[345542377,1734323439076,-501.51146595,0.00027397,7]
[345542378,1734323439087,-328.64434003,0.00027397,7]
[345542379,1734323439099,-500.0,0.00027397,7]
[345542380,1734323439110,-502.62096378,0.00027397,7]
[345542381,1734323439123,-500.0,0.00027397,7]
[345542382,1734323439135,-539.10103757,0.00027397,7]
[345542383,1734323439149,-500.0,0.00027397,7]
[345542384,1734323439161,-500.0,0.00027397,7]
[345542385,1734323439174,-502.76001849,0.00027397,7]
[345542386,1734323439187,-519.72591263,0.00027397,7]
[345542387,1734323439200,-500.0,0.00027397,7]
[345542388,1734323439213,-500.0,0.00027397,7]
[345542389,1734323439223,-506.2770971,0.00027397,7]
[345542390,1734323439233,-500.0,0.00027397,7]
[345542391,1734323439244,-505.04767068,0.00027397,7]
[345542392,1734323439255,-500.0,0.00027397,7]
[345542393,1734323439267,-374.76403359,0.00027397,7]
[345542394,1734323439283,-500.0,0.00027397,7]
[345542395,1734323439296,-158.52666069,0.00027397,7]
[345542396,1734323439306,-501.10856102,0.00027397,7]
[345542397,1734323439318,-500.0,0.00027397,7]
[345542398,1734323439329,-196.20937865,0.00027397,7]
[345542399,1734323439341,-500.0,0.00027397,7]
[345542400,1734323439354,-500.0,0.00027397,7]
[345542401,1734323439366,-503.98940354,0.00027397,7]
[345542402,1734323439377,-507.09851157,0.00027397,7]
[345542403,1734323439387,-500.0,0.00027397,7]
[345542404,1734323439399,-503.62042531,0.00027397,7]
[345542405,1734323439410,-503.5881907,0.00027397,7]
[345542406,1734323439420,-509.8362244,0.00027397,7]
[345542408,1734323439432,-500.0,0.00027397,7]
[345542410,1734323439443,-502.37854492,0.00027397,7]
[345542411,1734323439454,-500.0,0.00027397,7]
[345542412,1734323439465,-500.99448498,0.00027397,7]
[345542413,1734323439477,-506.22579799,0.00027397,7]
[345542414,1734323439488,-500.0,0.00027397,7]
[345542415,1734323439499,-507.20653829,0.00027397,7]
[345542416,1734323439510,-500.0,0.00027397,7]
[345542418,1734323439520,-500.0,0.00027397,7]
[345542419,1734323439531,-505.48390917,0.00027397,7]
[345542420,1734323439543,-500.0,0.00027397,7]
[345542421,1734323439554,-500.0,0.00027397,7]
[345542422,1734323439567,-512.62968252,0.00027397,7]
[345542423,1734323439578,-500.0,0.00027397,7]
[345542424,1734323439590,-503.05581639,0.00027397,7]
[345542425,1734323439601,-500.0,0.00027397,7]
[345542426,1734323439612,-501.78688542,0.00027397,7]
[345542427,1734323439624,-500.0,0.00027397,7]
[345542428,1734323439635,-510.39780587,0.00027397,7]
[345542429,1734323439646,-500.0,0.00027397,7]
[345542430,1734323439662,-427.10763945,0.00027397,7]
[345542431,1734323439673,-500.0,0.00027397,7]
[345542433,1734323439684,-500.0,0.00027397,2]
[345542435,1734323439695,-500.0,0.00027397,7]
[345542437,1734323439708,-505.67026531,0.00027397,7]
[345542439,1734323439719,-509.83153385,0.00027397,7]
[345542442,1734323439731,-196.22289417,0.00027397,7]
[345542444,1734323439744,-400.82791068,0.00027397,7]
[345542446,1734323439756,-500.0,0.00027397,7]
[345542448,1734323439767,-504.25022879,0.00027397,7]
[345542450,1734323439780,-295.79150136,0.00027397,7]
[345542453,1734323439791,-643.70911293,0.00027397,7]
[345542455,1734323439802,-235.891878,0.00027397,7]
[345542457,1734323439813,-385.31930586,0.00027397,7]
[345542459,1734323439824,-235.891878,0.00027397,7]
[345542461,1734323439835,-500.0,0.00027397,7]
[345542464,1734323439844,-500.0,0.00027397,7]
[345542466,1734323439854,-500.0,0.00027397,7]
[345542468,1734323439864,-500.0,0.00027397,7]
[345542472,1734323440000,-500.0,0.00027397,7]
[345542473,1734323440012,-500.0,0.00027397,7]
[345542474,1734323440025,-164.90700594,0.00027397,7]
[345542475,1734323440034,-500.0,0.00027397,7]
[345542476,1734323440044,-500.0,0.00027397,7]
[345542477,1734323440054,-502.87093643,0.00027397,7]
[345542478,1734323440064,-500.0,0.00027397,7]
[345542479,1734323440074,-504.97892649,0.00027397,7]
[345542481,1734323440083,-597.598134,0.00027397,7]
[345542483,1734323440092,-597.598134,0.00027397,7]
[345542485,1734323440102,-502.88002799,0.00027397,7]
[345542487,1734323440111,-500.0,0.00027397,7]
[345542489,1734323440120,-500.0,0.00027397,7]
[345542491,1734323440129,-151.0,0.00027397,7]
[345542493,1734323440138,-177.454704,0.00027397,7]
[345542495,1734323440148,-181.835784,0.00027397,7]
[345542497,1734323440157,-177.454704,0.00027397,7]
[345542499,1734323440167,-1305.283138,0.00027397,7]
[345542501,1734323440176,-501.44250337,0.00027397,7]
[345542503,1734323440186,-1305.283138,0.00027397,7]
[345542505,1734323440195,-500.0,0.00027397,7]
[345542507,1734323440204,-1694.81,0.00027397,7]
[345542509,1734323440214,-500.0,0.00027397,7]
[345542511,1734323440223,-508.52324405,0.00027397,7]
[345542513,1734323440233,-500.0,0.00027397,7]
[345542515,1734323440242,-191.110482,0.00027397,7]
[345542517,1734323440251,-503.67050746,0.00027397,7]
[345542519,1734323440261,-500.0,0.00027397,7]
[345542521,1734323440273,-191.110482,0.00027397,7]
[345542523,1734323440284,-151.0,0.00027397,7]
[345542525,1734323440293,-500.0,0.00027397,7]
[345542527,1734323440302,-508.41735148,0.00027397,7]
[345542529,1734323440311,-151.0,0.00027397,7]
[345542531,1734323440320,-500.47449633,0.00027397,7]
[345542533,1734323440329,-500.0,0.00027397,7]
[345542535,1734323440339,-500.0,0.00027397,7]
[345542537,1734323440349,-595.96,0.00027397,7]
[345542539,1734323440358,-500.0,0.00027397,7]
[345542541,1734323440367,-500.0,0.00027397,7]
[345542543,1734323440376,-500.0,0.00027397,7]
[345542545,1734323440386,-664.79,0.00027397,5]
[345542547,1734323440395,-500.0,0.00027397,7]
[345542549,1734323440404,-500.0,0.00027397,7]
[345542551,1734323440413,-500.0,0.00027397,7]
[345542554,1734323440423,-500.0,0.00027397,7]
[345542556,1734323440435,-890.41,0.00027397,7]
[345542558,1734323440444,-505.38447459,0.00027397,7]
[345542560,1734323440453,-505.73043511,0.00027397,7]
[345542562,1734323440462,-500.0,0.00027397,7]
[345542564,1734323440472,-68254.04,0.00027397,7]
[345542566,1734323440481,-151.0,0.00027397,7]
[345542567,1734323440490,-152.530974,0.00027397,7]
[345542569,1734323440499,-151.0,0.00027397,7]
[345542571,1734323440508,-500.0,0.00027397,7]
[345542574,1734323440518,-506.64271143,0.00027397,7]
[345542575,1734323440529,-500.0,0.00027397,7]
[345542578,1734323440539,-151.0,0.00027397,7]
[345542580,1734323440548,-512.24222871,0.00027397,7]
[345542581,1734323440557,-160.158585,0.00027397,7]
[345542584,1734323440566,-500.0,0.00027397,7]
[345542586,1734323440576,-2859.63,0.00027397,7]
[345542588,1734323440585,-510.75552304,0.00027397,7]
[345542590,1734323440594,-505.78228069,0.00027397,7]
[345542592,1734323440603,-835.38,0.00027397,7]
[345542594,1734323440611,-500.0,0.00027397,7]
[345542596,1734323440620,-503.60618369,0.00027397,7]
[345542598,1734323440629,-704.835194,0.00027397,7]
[345542600,1734323440638,-704.835194,0.00027397,7]
[345542602,1734323440647,-500.0,0.00027397,7]
[345542604,1734323440659,-511.85910151,0.00027397,7]
[345542606,1734323440668,-500.0,0.00027397,2]
[345542608,1734323440678,-704.835194,0.00027397,7]
[345542610,1734323440688,-704.835194,0.00027397,7]
[345542612,1734323440698,-500.38492864,0.00027397,2]
[345542614,1734323440707,-510.78730795,0.00027397,7]
[345542616,1734323440717,-503.38287302,0.00027397,7]
[345542618,1734323440727,-504.70811558,0.00027397,7]
[345542620,1734323440737,-1589.14,0.00027397,7]
[345542622,1734323440747,-502.93434289,0.00027397,7]
[345542624,1734323440756,-500.0,0.00027397,7]
[345542626,1734323440766,-195.68453638,0.00027397,7]
[345542628,1734323440776,-154.26047773,0.00027397,2]
[345542630,1734323440785,-5182.0944052,0.00027397,2]
[345542632,1734323440794,-161.09788,0.00027397,7]
[345542634,1734323440803,-2294.55,0.00027414,2]
[345542636,1734323440812,-533.0,0.00027414,2]
[345542638,1734323440822,-2369.0,0.00027414,2]
[345542640,1734323440831,-248.567,0.00027414,2]
[345542642,1734323440842,-500.13863086,0.00027472,8]
[345542644,1734323440852,-420.0,0.00027499,2]
[345542646,1734323440861,-6288.82381808,0.000275,2]
[345542648,1734323440871,-151.0,0.000275,7]
[345542649,1734323440881,-704.835194,0.000275,7]
[345542651,1734323440890,-704.835194,0.000275,7]
[345542653,1734323440899,-199.041084,0.00027574,7]
[345542656,1734323440909,-704.835194,0.00027574,7]
[345542658,1734323440918,-704.835194,0.00027574,7]
[345542660,1734323440928,-704.835194,0.00027574,7]
[345542662,1734323440937,-704.835194,0.00027574,7]
[345542664,1734323440947,-4535.2727242,0.00027575,2]
[345542666,1734323440956,-154.26047773,0.00027644,2]
[345542668,1734323440966,-151.0,0.00027669,7]
[345542670,1734323440975,-151.0,0.00027669,7]
[345542672,1734323440984,-191.110482,0.00027669,7]
[345542674,1734323440994,-191.110482,0.00027669,7]
[345542676,1734323441004,-191.110482,0.00027669,7]
[345542678,1734323441013,-191.110482,0.00027669,7]
[345542680,1734323441023,-151.0,0.00027669,7]
[345542682,1734323441032,-151.0,0.00027669,7]
[345542684,1734323441041,-151.0,0.00027669,7]
[345542686,1734323441051,-155.709837,0.00027669,7]
[345542688,1734323441061,-151.0,0.0002767,7]
[345542690,1734323441070,-151.0,0.0002767,7]
[345542692,1734323441080,-153.418494,0.0002767,7]
[345542694,1734323441090,-151.846382,0.0002767,7]
[345542696,1734323441099,-151.0,0.0002767,7]
[345542698,1734323441109,-151.0,0.0002767,7]
[345542700,1734323441118,-151.0,0.0002767,7]
[345542702,1734323441127,-151.0,0.0002767,7]
[345542704,1734323441137,-151.0,0.0002767,7]
[345542706,1734323441147,-151.0,0.0002767,7]
[345542708,1734323441156,-151.0,0.0002767,7]
[345542710,1734323441166,-158.084338,0.0002767,7]
[345542711,1734323441175,-275.283622,0.0002767,7]
[345542714,1734323441185,-275.283622,0.0002767,7]
[345542716,1734323441195,-275.283622,0.0002767,7]
[345542718,1734323441204,-151.0,0.0002767,7]
[345542720,1734323441214,-151.0,0.0002767,7]
[345542722,1734323441223,-151.0,0.0002767,7]
[345542723,1734323441233,-275.283622,0.0002767,7]
[345542725,1734323441242,-275.283622,0.0002767,7]
[345542728,1734323441252,-275.283622,0.0002767,7]
[345542730,1734323441262,-151.0,0.0002767,7]
[345542732,1734323441272,-171.088538,0.0002767,7]
[345542734,1734323441282,-235.891878,0.0002767,7]
[345542736,1734323441291,-151.0,0.0002767,7]
[345542737,1734323441300,-235.891878,0.0002767,7]
[345542740,1734323441310,-151.0,0.0002767,7]
[345542741,1734323441320,-151.0,0.0002767,7]
[345542744,1734323441329,-259.74414,0.0002767,7]
[345542745,1734323441339,-259.74414,0.0002767,7]
[345542747,1734323441348,-259.74414,0.0002767,7]
[345542750,1734323441358,-235.891878,0.0002767,7]
[345542752,1734323441367,-167.843026,0.0002767,7]
[345542753,1734323441377,-235.891878,0.0002767,7]
[345542756,1734323441386,-259.74414,0.0002767,7]
[345542758,1734323441395,-259.74414,0.0002767,7]
[345542759,1734323441405,-259.74414,0.0002767,7]
[345542762,1734323441415,-153.53911,0.0002767,7]
[345542764,1734323441424,-153.53911,0.0002767,7]
[345542766,1734323441434,-153.53911,0.0002767,7]
[345542768,1734323441443,-153.53911,0.0002767,7]
[345542770,1734323441452,-153.53911,0.0002767,7]
[345542772,1734323441462,-153.53911,0.0002767,7]
[345542774,1734323441471,-597.598134,0.0002767,7]
[345542776,1734323441480,-597.598134,0.0002767,7]
[345542778,1734323441489,-597.598134,0.0002767,7]
[345542780,1734323441499,-597.598134,0.0002767,7]
[345542782,1734323441508,-177.454704,0.0002767,7]
[345542784,1734323441517,-177.454704,0.0002767,7]
[345542786,1734323441527,-177.454704,0.0002767,7]
[345542788,1734323441536,-177.454704,0.0002767,7]
[345542790,1734323441546,-1305.283138,0.0002767,7]
[345542792,1734323441555,-1305.283138,0.0002767,7]
[345542794,1734323441565,-1305.283138,0.0002767,7]
[345542796,1734323441574,-1305.283138,0.0002767,7]
[345542798,1734323441584,-500.0,0.00027671,7]
[345542800,1734323441593,-227.701147,0.00027671,7]
[345542802,1734323441602,-227.701147,0.00027671,7]
[345542804,1734323441611,-151.0,0.00027671,7]
[345542806,1734323441620,-299.739266,0.00027671,7]
[345542808,1734323441630,-151.0,0.00027671,7]
[345542810,1734323441639,-151.0,0.00027671,7]
[345542812,1734323441648,-151.0,0.00027671,7]
[345542814,1734323441661,-337.228978,0.00027671,7]
[345542816,1734323441671,-337.228978,0.00027671,7]
[345542818,1734323441680,-203.57878873,0.00027671,7]
[345542820,1734323441690,-500.0,0.00027671,7]
[345542822,1734323441702,-500.0,0.00027671,7]
[345542824,1734323441711,-616.310177,0.00027671,7]
[345542826,1734323441720,-1057.94221817,0.00027671,2]
[345542828,1734323441731,-500.0,0.00027671,7]
[345542830,1734323441740,-616.310177,0.00027671,7]
[345542832,1734323441750,-506.19223073,0.00027671,7]
[345542834,1734323441759,-500.0,0.00027671,7]
[345542836,1734323441769,-500.0,0.00027671,7]
[345542838,1734323441779,-500.0,0.00027671,7]
[345542840,1734323441788,-151.0,0.00027671,7]
[345542842,1734323441798,-151.0,0.00027671,7]
[345542844,1734323441807,-151.0,0.00027671,7]
[345542846,1734323441816,-500.0,0.00027671,7]
[345542848,1734323441825,-500.0,0.00027671,7]
[345542850,1734323441834,-152.154592,0.00027671,7]
[345542852,1734323441843,-168.0,0.00027671,7]
[345542854,1734323441852,-500.0,0.00027671,7]
[345542856,1734323441861,-477.16012245,0.00027671,7]
[345542858,1734323441871,-151.0,0.00027671,7]
[345542860,1734323441880,-151.0,0.00027671,7]
[345542862,1734323441890,-151.0,0.00027671,7]
[345542864,1734323441899,-151.0,0.00027671,7]
[345542866,1734323441908,-509.12446409,0.00027671,7]
[345542868,1734323441918,-500.0,0.00027671,7]
[345542870,1734323441927,-503.89135592,0.00027671,7]
[345542872,1734323441936,-502.81964183,0.00027671,7]
[345542874,1734323441945,-501.80392648,0.00027671,7]
[345542876,1734323441954,-152.676605,0.00027671,7]
[345542878,1734323441964,-511.69054435,0.00027671,7]
[345542880,1734323441973,-506.33796315,0.00027671,7]
[345542882,1734323441982,-503.63843253,0.00027671,7]
[345542884,1734323441991,-500.0,0.00027671,7]
[345542886,1734323442000,-500.0,0.00027671,7]
[345542888,1734323442010,-151.0,0.00027671,7]
[345542890,1734323442019,-500.0,0.00027671,7]
[345542891,1734323442028,-152.599072,0.00027671,7]
[345542893,1734323442038,-500.0,0.00027671,7]
[345542896,1734323442047,-151.0,0.00027671,7]
[345542898,1734323442056,-151.0,0.00027671,7]
[345542900,1734323442066,-151.0,0.00027671,7]
[345542902,1734323442075,-386.10589763,0.00027671,7]
[345542904,1734323442085,-500.0,0.00027671,7]
[345542906,1734323442095,-151.0,0.00027671,7]
[345542908,1734323442104,-1371.030753,0.00027671,7]
[345542910,1734323442113,-1371.030753,0.00027671,7]
[345542912,1734323442122,-414.311672,0.00027671,7]
[345542914,1734323442132,-414.311672,0.00027671,7]
[345542916,1734323442141,-154.196248,0.00027671,7]
[345542918,1734323442151,-891.518572,0.00027671,7]
[345542920,1734323442160,-891.518572,0.00027671,7]
[345542922,1734323442169,-502.7848892,0.00027671,7]
[345542924,1734323442179,-500.0,0.00027671,7]
[345542926,1734323442189,-891.518572,0.00027671,7]
[345542928,1734323442199,-891.518572,0.00027671,7]
[345542930,1734323442209,-500.0,0.00027671,7]
[345542932,1734323442218,-500.0,0.00027671,7]
[345542934,1734323442227,-502.65494426,0.00027671,7]
[345542936,1734323442236,-500.0,0.00027671,7]
[345542938,1734323442245,-500.0,0.00027671,7]
[345542940,1734323442255,-507.95315676,0.00027671,7]
[345542942,1734323442264,-506.95449893,0.00027671,7]
[345542953,1734323442372,-725.856956,0.00027671,7]
[345542956,1734323442382,-725.856956,0.00027671,7]
[345542957,1734323442392,-500.0,0.00027671,7]
[345542959,1734323442402,-725.856956,0.00027671,7]
[345542961,1734323442411,-725.856956,0.00027671,7]
[345542963,1734323442420,-500.0,0.00027671,7]
[345542965,1734323442429,-151.0,0.00027671,7]
[345542967,1734323442439,-151.0,0.00027671,7]
[345542969,1734323442449,-502.6579722,0.00027671,7]
[345542971,1734323442458,-500.0,0.00027671,7]
[345542974,1734323442468,-301.509133,0.00027671,7]
[345542976,1734323442478,-566.06676919,0.00027671,7]
[345542978,1734323442488,-151.0,0.00027671,7]
[345542980,1734323442497,-151.0,0.00027671,7]
[345542982,1734323442506,-500.0,0.00027671,7]
[345542984,1734323442516,-507.99473097,0.00027671,7]
[345542985,1734323442526,-275.283622,0.00027671,7]
[345542988,1734323442535,-151.0,0.00027671,7]
[345542992,1734323442544,-500.0,0.00027671,7]
[345542995,1734323442554,-275.283622,0.00027671,7]
[345542998,1734323442564,-322.83351555,0.00027671,7]
[345543000,1734323442573,-500.0,0.00027671,7]
[345543002,1734323442582,-500.0,0.00027671,2]
[345543004,1734323442591,-500.0,0.00027671,7]
[345543006,1734323442601,-500.0,0.00027671,7]
[345543008,1734323442610,-235.891878,0.00027671,7]
[345543010,1734323442620,-235.891878,0.00027671,7]
[345543012,1734323442629,-151.0,0.00027671,7]
[345543014,1734323442639,-259.74414,0.00027671,7]
[345543016,1734323442648,-235.891878,0.00027671,7]
[345543018,1734323442661,-235.891878,0.00027671,7]
[345543020,1734323442670,-511.54555679,0.00027671,7]
[345543022,1734323442680,-500.0,0.00027671,7]
[345543024,1734323442690,-259.74414,0.00027671,7]
[345543027,1734323442700,-500.0,0.00027671,7]
[345543029,1734323442710,-500.0,0.00027671,7]
[345543031,1734323442720,-500.0,0.00027671,7]
[345543032,1734323442729,-506.19097359,0.00027671,7]
[345543034,1734323442738,-153.53911,0.00027671,7]
[345543037,1734323442749,-517.59232035,0.00027671,7]
[345543039,1734323442758,-153.53911,0.00027671,7]
[345543041,1734323442768,-597.598134,0.00027671,7]
[345543043,1734323442779,-597.598134,0.00027671,7]
[345543045,1734323442788,-597.598134,0.00027671,7]
[345543047,1734323442797,-597.598134,0.00027671,7]
[345543049,1734323442806,-500.0,0.00027671,7]
[345543051,1734323442816,-500.0,0.00027671,7]
[345543053,1734323442825,-151.0,0.00027671,7]
[345543055,1734323442835,-151.0,0.00027671,7]
[345543057,1734323442844,-177.454704,0.00027671,7]
[345543059,1734323442853,-177.454704,0.00027671,7]
[345543061,1734323442863,-177.454704,0.00027671,7]
[345543063,1734323442872,-177.454704,0.00027671,7]
[345543065,1734323442882,-1305.283138,0.00027671,7]
[345543067,1734323442891,-1305.283138,0.00027671,7]
[345543069,1734323442900,-1305.283138,0.00027671,7]
[345543071,1734323442910,-500.0,0.00027671,7]
[345543073,1734323442919,-1305.283138,0.00027671,7]
[345543075,1734323442928,-1694.81,0.00027671,7]
[345543077,1734323442937,-500.0,0.00027671,7]
[345543079,1734323442947,-500.0,0.00027671,7]
[345543081,1734323442956,-191.110482,0.00027671,7]
[345543083,1734323442965,-191.110482,0.00027671,7]
[345543085,1734323442974,-500.0,0.00027671,7]
[345543087,1734323442985,-191.110482,0.00027671,7]
[345543089,1734323442994,-191.110482,0.00027671,7]
[345543091,1734323443003,-500.0,0.00027671,7]
[345543093,1734323443013,-151.0,0.00027671,7]
[345543095,1734323443023,-151.0,0.00027671,7]
[345543097,1734323443032,-500.0,0.00027671,7]
[345543099,1734323443042,-500.0,0.00027671,7]
[345543101,1734323443051,-595.96,0.00027671,7]
[345543103,1734323443060,-500.0,0.00027671,7]
[345543105,1734323443069,-500.0,0.00027671,7]
[345543107,1734323443079,-500.0,0.00027671,7]
[345543109,1734323443088,-664.79,0.00027671,5]
[345543111,1734323443097,-500.0,0.00027671,7]
[345543113,1734323443106,-627.46290254,0.00027671,7]
[345543115,1734323443115,-500.0,0.00027671,7]
[345543117,1734323443124,-500.0,0.00027671,7]
[345543119,1734323443133,-890.41,0.00027671,7]
[345543121,1734323443143,-68254.04,0.00027671,7]
[345543123,1734323443153,-500.0,0.00027671,7]
[345543125,1734323443162,-500.0,0.00027671,7]
[345543127,1734323443171,-500.0,0.00027671,7]
[345543129,1734323443181,-500.0,0.00027671,7]
[345543131,1734323443190,-2859.63,0.00027671,7]
[345543133,1734323443200,-835.38,0.00027671,7]
[345543135,1734323443210,-500.0,0.00027671,7]
[345543137,1734323443220,-704.835194,0.00027671,7]
[345543139,1734323443230,-704.835194,0.00027671,7]
[345543141,1734323443240,-500.0,0.00027671,2]
[345543143,1734323443249,-704.835194,0.00027671,7]
[345543145,1734323443259,-704.835194,0.00027671,7]
[345543147,1734323443271,-1589.14,0.00027671,7]
[345543149,1734323443280,-528.0,0.00027671,2]
[345543151,1734323443290,-500.0,0.00027673,5]
[345543153,1734323443299,-502.13809932,0.00027673,5]
[345543155,1734323443309,-1234.7,0.0002775,15]
[345543157,1734323443318,-658.67557577,0.00027796,2]
[345543159,1734323443327,-151.0,0.000278,11]
[345543161,1734323443337,-150.271,0.00027844,2]
[345543163,1734323443347,-150.371,0.00027844,2]
[345543165,1734323443356,-154.26047773,0.0002789,2]
[345543167,1734323443366,-666.0,0.00027899,2]
[345543169,1734323443375,-151.0,0.000279,15]
[345543171,1734323443385,-598.10887286,0.00027921,5]
[345543173,1734323443395,-1000.0,0.00027921,5]
[345543175,1734323443404,-296.370308,0.00027936,4]
[345543177,1734323443413,-151.0,0.00027943,7]
[345543179,1734323443422,-151.0,0.00027943,7]
[345543181,1734323443432,-151.0,0.00027943,7]
[345543183,1734323443441,-151.0,0.00027943,7]
[345543185,1734323443450,-1371.030753,0.00027943,7]
[345543187,1734323443459,-1371.030753,0.00027943,7]
[345543189,1734323443468,-414.311672,0.00027943,7]
[345543191,1734323443478,-414.311672,0.00027943,7]
[345543193,1734323443488,-891.518572,0.00027943,7]
[345543195,1734323443497,-891.518572,0.00027943,7]
[345543197,1734323443506,-891.518572,0.00027943,7]
[345543199,1734323443515,-891.518572,0.00027943,7]
[345543201,1734323443526,-725.856956,0.00027943,7]
[345543203,1734323443542,-725.856956,0.00027943,7]
[345543205,1734323443551,-725.856956,0.00027943,7]
[345543207,1734323443561,-725.856956,0.00027943,7]
[345543209,1734323443571,-151.0,0.00027943,7]
[345543211,1734323443580,-151.0,0.00027943,7]
[345543213,1734323443590,-227.701147,0.00027944,7]
[345543215,1734323443600,-227.701147,0.00027944,7]
[345543217,1734323443610,-227.701147,0.00027944,7]
[345543219,1734323443619,-227.701147,0.00027944,7]
[345543221,1734323443629,-151.0,0.00027944,7]